fUST/lending_fUST_20260129
["ID","MTS","AMOUNT","RATE_DAILY","PERIOD"]
[403919067,1769676646520,-1005.2588656,0.00013821,2]
[403919068,1769676646529,-164.92480042,0.00013821,2]
[403919069,1769676646538,-507.52933695,0.00013821,2]
[403919070,1769676646547,-1000.0,0.00013821,2]
[403919071,1769676646557,-1000.0,0.00013821,2]
[403919072,1769676646566,-1000.0,0.00013821,2]
[403919073,1769676646576,-1000.0,0.00013821,2]
[403919074,1769676646585,-1001.94091464,0.00013821,2]
[403919075,1769676646595,-1000.0,0.00013821,2]
[403919076,1769676646604,-500.0,0.00013836,2]
[403919077,1769676646613,-500.0,0.00013836,2]
[403919078,1769676646622,-310.44569946,0.00013836,2]
[403919079,1769676646631,-500.0,0.00013836,2]
[403919080,1769676646641,-500.0,0.00013836,2]
[403919081,1769676646650,-500.0,0.00013836,2]
[403919082,1769676646660,-283.25191596,0.00013836,2]
[403919084,1769676646670,-1000.0,0.00013973,2]
[403919085,1769676646679,-500.0,0.00013973,2]
[403919086,1769676646690,-450.0,0.00013973,2]
[403919087,1769676646700,-500.0,0.00013973,2]
[403919088,1769676646710,-500.0,0.00013973,2]
[403919089,1769676646719,-500.0,0.00013973,2]
[403919090,1769676646728,-420.0,0.00014073,2]
[403919091,1769676646737,-459.0,0.0001411,2]
[403919092,1769676646747,-500.0,0.0001411,2]
[403919093,1769676646756,-500.0,0.0001411,2]
[403919094,1769676646766,-500.0,0.0001411,2]
[403919095,1769676646775,-600.0,0.00014221,2]
[403919096,1769676646785,-1003.26235573,0.00014247,2]
[403919097,1769676646794,-1000.0,0.00014247,2]
[403919098,1769676646803,-341.02216059,0.00014247,2]
[403919099,1769676646813,-194.08711327,0.00014247,2]
[403919100,1769676646822,-1000.0,0.00014247,2]
[403919101,1769676646832,-1000.0,0.00014247,2]
[403919102,1769676646841,-722.3651231,0.00014247,2]
[403919103,1769676646853,-517.47382596,0.00014247,2]
[403919104,1769676646862,-500.0,0.00014247,2]
[403919105,1769676646872,-500.0,0.00014247,2]
[403919106,1769676646882,-206.6985119,0.00014271,2]
[403919107,1769676646891,-212.39101422,0.00014368,2]
[403919108,1769676646902,-1500.0,0.00014368,2]
[403919109,1769676646912,-1500.0,0.00014368,2]
[403919110,1769676646922,-1329.19001283,0.00014368,2]
[403919111,1769676646934,-170.80998717,0.00014368,2]
[403919112,1769676646944,-676.34932912,0.00014384,2]
[403919115,1769677410973,-158.321,0.00012446,2]
[403919116,1769677410994,-244.31060377,0.00012522,2]
[403919117,1769677411015,-347.18575282,0.00012599,2]
[403919118,1769677411037,-250.18264341,0.00012599,2]
[403919119,1769677413056,-347.81735659,0.00012599,2]
[403919120,1769677413078,-300.0,0.00012599,2]
[403919121,1769677413098,-352.18264341,0.000126,2]
[403919122,1769677413388,-1000.0,0.000126,2]
[403919123,1769677413730,-1000.0,0.000126,2]
[403919124,1769677414105,-290.80306009,0.000126,2]
[403919125,1769677414126,-709.19693991,0.000126,2]
[403919126,1769677414552,-1000.0,0.000126,2]
[403919127,1769677415024,-1000.0,0.000126,2]
[403919128,1769677415346,-1000.0,0.000126,2]
[403919129,1769677415694,-475.12608879,0.000126,2]
[403919130,1769677415718,-153.66283564,0.00012692,2]
[403919131,1769677415738,-300.0,0.00012698,2]
[403919132,1769677415760,-71.21107557,0.00012699,2]
[403919133,1769677416011,-183.6143019,0.00012699,2]
[403919134,1769677416033,-816.3856981,0.00012699,2]
[403919135,1769677416351,-383.6143019,0.00012699,2]
[403919136,1769677416376,-616.3856981,0.000127,2]
[403919137,1769677416906,-1000.0,0.000127,2]
[403919138,1769677417354,-1000.0,0.000127,2]
[403919139,1769677417645,-1000.0,0.000127,2]
[403919140,1769677418076,-1000.0,0.000127,2]
[403919141,1769677418537,-1000.0,0.000127,2]
[403919142,1769677418960,-1000.0,0.000127,2]
[403919143,1769677419296,-1000.0,0.000127,2]
[403919144,1769677419738,-1000.0,0.000127,2]
[403919145,1769677420052,-1000.0,0.000127,2]
[403919146,1769677420530,-1000.0,0.000127,2]
[403919147,1769677421040,-1000.0,0.000127,2]
[403919148,1769677421525,-1000.0,0.000127,2]
[403919149,1769677422029,-1000.0,0.000127,2]
[403919150,1769677422531,-1000.0,0.000127,2]
[403919151,1769677422889,-1000.0,0.000127,2]
[403919152,1769677423210,-1000.0,0.000127,2]
[403919153,1769677424751,-1000.0,0.000127,2]
[403919154,1769677425067,-1000.0,0.000127,2]
[403919155,1769677425461,-1000.0,0.000127,2]
[403919156,1769677425841,-1000.0,0.000127,2]
[403919157,1769677427189,-1000.0,0.000127,2]
[403919158,1769677428026,-1000.0,0.000127,2]
[403919159,1769677429141,-1000.0,0.000127,2]
[403919160,1769677430015,-1000.0,0.000127,2]
[403919161,1769677467218,-300.0,0.00012699,2]
[403919162,1769677467244,-700.0,0.000127,2]
[403919163,1769677468414,-1000.0,0.000127,2]
[403919164,1769677468846,-1000.0,0.000127,2]
[403919165,1769677469192,-1000.0,0.000127,2]
[403919166,1769677469629,-1000.0,0.000127,2]
[403919167,1769677469960,-1000.0,0.000127,2]
[403919168,1769677470279,-1000.0,0.000127,2]
[403919169,1769677470629,-1000.0,0.000127,2]
[403919170,1769677471059,-1000.0,0.000127,2]
[403919171,1769677471537,-1000.0,0.000127,2]
[403919172,1769677471884,-1000.0,0.000127,2]
[403919173,1769677472313,-1000.0,0.000127,2]
[403919174,1769677472627,-1000.0,0.000127,2]
[403919175,1769677473062,-1000.0,0.000127,2]
[403919176,1769677473382,-1000.0,0.000127,2]
[403919177,1769677473824,-1000.0,0.000127,2]
[403919178,1769677474154,-1000.0,0.000127,2]
[403919179,1769677474611,-1000.0,0.000127,2]
[403919180,1769677475119,-1000.0,0.000127,2]
[403919181,1769677475454,-1000.0,0.000127,2]
[403919182,1769677475895,-1000.0,0.000127,2]
[403919183,1769677476333,-1000.0,0.000127,2]
[403919184,1769677476654,-1000.0,0.000127,2]
[403919185,1769677477090,-1000.0,0.000127,2]
[403919186,1769677477399,-1000.0,0.000127,2]
[403919187,1769677477803,-1000.0,0.000127,2]
[403919188,1769677478150,-1000.0,0.000127,2]
[403919189,1769677478497,-1000.0,0.000127,2]
[403919190,1769677478881,-1000.0,0.000127,2]
[403919191,1769677479351,-1000.0,0.000127,2]
[403919192,1769677480672,-1000.0,0.000127,2]
[403919193,1769677481113,-1000.0,0.000127,2]
[403919194,1769677481559,-1000.0,0.000127,2]
[403919195,1769677482042,-1000.0,0.000127,2]
[403919196,1769677482500,-1000.0,0.000127,2]
[403919197,1769677482863,-1000.0,0.000127,2]
[403919198,1769677484181,-1000.0,0.000127,2]
[403919199,1769677484631,-1000.0,0.000127,2]
[403919200,1769677485895,-1000.0,0.000127,2]
[403919201,1769677486342,-1000.0,0.000127,2]
[403919202,1769677487657,-1000.0,0.000127,2]
[403919203,1769677488094,-1000.0,0.000127,2]
[403919204,1769677489221,-1000.0,0.000127,2]
[403919205,1769677489584,-1000.0,0.000127,2]
[403919206,1769677491098,-1000.0,0.000127,2]
[403919207,1769677492055,-1000.0,0.000127,2]
[403919208,1769677492908,-1000.0,0.000127,2]
[403919209,1769677493919,-1000.0,0.000127,2]
[403919210,1769677494710,-1000.0,0.000127,2]
[403919211,1769677496946,-1000.0,0.000127,2]
[403919212,1769677498071,-1000.0,0.000127,2]
[403919213,1769677499370,-1000.0,0.000126,2]
[403919214,1769677502102,-1000.0,0.000126,2]
[403919215,1769677518400,4940.42587495,0.00012369,2]
[403919216,1769677526241,3776.38887495,0.00012369,2]
[403919217,1769677542034,5000.0,0.00012369,2]
[403919218,1769677554953,-378.68713315,0.000126,2]
[403919219,1769677554974,-300.0,0.00012699,2]
[403919220,1769677554995,-321.31286685,0.00012699,2]
[403919221,1769677578741,-1000.0,0.00012571,2]
[403919222,1769677579904,-1000.0,0.00012571,2]
[403919223,1769677580991,-1000.0,0.00012571,2]
[403919224,1769677581476,-1000.0,0.00012571,2]
[403919225,1769677581830,-1000.0,0.00012571,2]
[403919275,1769677653296,-300.0,0.00012599,2]
[403919276,1769677653317,-239.42439169,0.000126,2]
[403919277,1769677653338,-460.57560831,0.000126,2]
[403919278,1769677654852,-1000.0,0.000126,2]
[403919279,1769677656084,-1000.0,0.000126,2]
[403919280,1769677683146,342.9,2.997e-05,2]
[403919281,1769677683585,342.9,2.997e-05,2]
[403919282,1769677705613,-300.0,0.00012599,2]
[403919283,1769677705637,-700.0,0.000126,2]
[403919284,1769677718521,50000.0,0.00034792,120]
[403919285,1769677749745,-1000.0,0.000126,2]
[403919286,1769677751002,-839.42439169,0.000126,2]
[403919287,1769677751023,-160.57560831,0.000126,2]
[403919288,1769677752069,-1000.0,0.000126,2]
[403919289,1769677753225,-1000.0,0.000126,2]
[403919290,1769677754355,-1000.0,0.000126,2]
[403919292,1769677794054,-186.88281465,0.000126,2]
[403919293,1769677803411,-225.7484677,0.00012695,2]
[403919294,1769677803432,-87.36871765,0.00012698,2]
[403919383,1769677838416,-178.37776423,0.00012599,2]
[403919384,1769677838425,-307.79346763,0.00012599,2]
[403919385,1769677838435,-586.82703624,0.00012599,2]
[403919386,1769677838445,-500.0,0.00012599,2]
[403919387,1769677838454,-500.0,0.00012599,2]
[403919388,1769677838464,-275.02953656,0.00012599,2]
[403919389,1769677838473,-500.0,0.00012599,2]
[403919390,1769677838483,-500.0,0.00012599,2]
[403919391,1769677838492,-500.0,0.00012599,2]
[403919392,1769677838505,-500.0,0.00012599,2]
[403919393,1769677838514,-500.0,0.00012599,2]
[403919394,1769677838523,-66.68787228,0.00012599,2]
[403919395,1769677838535,-433.31212772,0.00012599,2]
[403919396,1769677838544,-332.865,0.00012599,2]
[403919397,1769677838553,-500.0,0.00012599,2]
[403919398,1769677838563,-500.0,0.00012599,2]
[403919399,1769677838573,-500.0,0.00012599,2]
[403919400,1769677838583,-500.0,0.00012599,2]
[403919401,1769677838593,-500.0,0.00012599,2]
[403919402,1769677838603,-500.0,0.00012599,2]
[403919403,1769677838612,-9277.04075773,0.000126,2]
[403919409,1769677840067,-103786.10165076,0.000126,2]
[403919410,1769677840078,-43987.90954533,0.000126,2]
[403919411,1769677840089,-2242948.94804618,0.000126,2]
[403919412,1769677840098,-212.63128235,0.00012698,2]
[403919413,1769677840108,-1200.0,0.00012698,2]
[403919414,1769677840118,-240.04,0.000127,2]
[403919415,1769677840128,-1000.0,0.000127,2]
[403919416,1769677840139,-1000.0,0.000127,2]
[403919417,1769677840148,-1000.0,0.000127,2]
[403919418,1769677840158,-1000.0,0.000127,2]
[403919419,1769677840167,-1000.0,0.000127,2]
[403919420,1769677840177,-1000.0,0.000127,2]
[403919421,1769677840187,-1000.0,0.000127,2]
[403919422,1769677840196,-1000.0,0.000127,2]
[403919424,1769677840205,-1000.0,0.000127,2]
[403919425,1769677840215,-1000.0,0.000127,2]
[403919426,1769677840224,-1000.0,0.000127,2]
[403919427,1769677840233,-1000.0,0.000127,2]
[403919428,1769677840242,-1000.0,0.000127,2]
[403919429,1769677840251,-1000.0,0.000127,2]
[403919430,1769677840261,-1000.0,0.000127,2]
[403919431,1769677840270,-1000.0,0.000127,2]
[403919432,1769677840279,-1000.0,0.000127,2]
[403919436,1769677840288,-667.60649056,0.000127,2]
[403919437,1769677840428,-500.0,0.000127,2]
[403919438,1769677840439,-151.0,0.000127,2]
[403919439,1769677840448,-151.0,0.000127,2]
[403919440,1769677840457,-151.0,0.000127,2]
[403919441,1769677840467,-8859.87380915,0.000129,2]
[403919443,1769677840476,-3890.563676,0.00012949,2]
[403919444,1769677840485,-300.0,0.00012953,2]
[403919445,1769677840494,-300.0,0.00012953,2]
[403919446,1769677840504,-300.0,0.00012953,2]
[403919447,1769677840513,-300.0,0.00012953,2]
[403919448,1769677840523,-300.0,0.00012953,2]
[403919450,1769677840532,-300.0,0.00012953,2]
[403919451,1769677840542,-300.0,0.00012953,2]
[403919452,1769677840551,-300.0,0.00012953,2]
[403919453,1769677840560,-300.0,0.00012953,2]
[403919454,1769677840569,-300.0,0.00012953,2]
[403919455,1769677840578,-300.0,0.00012953,2]
[403919457,1769677840588,-300.0,0.00012953,2]
[403919458,1769677840597,-300.0,0.00012953,2]
[403919459,1769677840606,-300.0,0.00012953,2]
[403919460,1769677840616,-300.0,0.00012953,2]
[403919461,1769677840625,-600.0,0.00012953,2]
[403919462,1769677840635,-500.0,0.00012974,2]
[403919463,1769677840644,-2737.81768824,0.00013,2]
[403919464,1769677840654,-3347.45842294,0.00013154,2]
[403919465,1769677840663,-500.0,0.00013248,2]
[403919466,1769677840672,-502.84198919,0.00013273,2]
[403919467,1769677840682,-500.0,0.00013273,2]
[403919468,1769677840691,-502.121625,0.00013273,2]
[403919469,1769677840700,-430.04295978,0.00013273,2]
[403919470,1769677840709,-504.66671492,0.00013273,2]
[403919471,1769677840718,-536.76797533,0.00013273,2]
[403919472,1769677840728,-398.37330193,0.00013273,2]
[403919473,1769677840737,-167.9297864,0.00013273,2]
[403919474,1769677840746,-634.23164184,0.00013273,2]
[403919475,1769677840755,-500.0,0.00013273,2]
[403919476,1769677840764,-500.0,0.00013273,2]
[403919477,1769677840772,-500.0,0.00013273,2]
[403919478,1769677840782,-162.28812704,0.00013273,2]
[403919479,1769677840790,-500.0,0.00013273,2]
[403919480,1769677840799,-500.0,0.00013273,2]
[403919481,1769677840809,-500.0,0.00013273,2]
[403919482,1769677840818,-500.0,0.00013273,2]
[403919483,1769677840834,-549.00671497,0.00013273,2]
[403919484,1769677840843,-500.0,0.00013273,2]
[403919485,1769677840852,-501.84700796,0.00013273,2]
[403919486,1769677840861,-501.0352963,0.00013273,2]
[403919487,1769677840871,-500.0,0.00013273,2]
[403919488,1769677840880,-500.0,0.00013273,2]
[403919489,1769677840889,-500.0,0.00013273,2]
[403919490,1769677840899,-500.0,0.00013273,2]
[403919491,1769677840908,-500.0,0.00013273,2]
[403919492,1769677840918,-467.88085313,0.00013273,2]
[403919493,1769677840927,-161.6192891,0.00013273,2]
[403919494,1769677840936,-500.0,0.00013273,2]
[403919495,1769677840945,-316.86005023,0.00013273,2]
[403919496,1769677840954,-500.0,0.00013273,2]
[403919497,1769677840964,-500.0,0.00013273,2]
[403919498,1769677840973,-500.0,0.00013273,2]
[403919499,1769677840983,-500.92401321,0.00013273,2]
[403919500,1769677840993,-500.0,0.00013273,2]
[403919501,1769677841003,-151.83186163,0.00013273,2]
[403919502,1769677841012,-502.30333023,0.00013273,2]
[403919503,1769677841021,-501.31853517,0.00013273,2]
[403919504,1769677841030,-500.0,0.00013273,2]
[403919505,1769677841040,-500.0,0.00013273,2]
[403919506,1769677841049,-500.0,0.00013273,2]
[403919507,1769677841058,-500.0,0.00013273,2]
[403919508,1769677841067,-500.0,0.00013273,2]
[403919509,1769677841077,-500.0,0.00013273,2]
[403919510,1769677841086,-383.45,0.000133,2]
[403919511,1769677841096,-3890.563676,0.00013494,2]
[403919512,1769677841105,-500.0,0.00013522,2]
[403919513,1769677841121,-300.0,0.00013673,2]
[403919514,1769677841135,-500.0,0.00013698,2]
[403919515,1769677841146,-500.0,0.00013698,2]
[403919516,1769677841155,-500.0,0.00013698,2]
[403919517,1769677841165,-500.0,0.00013698,2]
[403919518,1769677841175,-500.0,0.00013698,2]
[403919519,1769677841185,-500.0,0.00013698,2]
[403919520,1769677841194,-500.0,0.00013698,2]
[403919521,1769677841204,-500.0,0.00013698,2]
[403919522,1769677841215,-500.0,0.00013698,2]
[403919523,1769677841226,-500.0,0.00013698,2]
[403919524,1769677841236,-500.0,0.00013698,2]
[403919525,1769677841246,-610.45891108,0.00013698,2]
[403919526,1769677841255,-525.32488563,0.00013698,2]
[403919527,1769677841265,-500.0,0.00013698,2]
[403919528,1769677841274,-500.0,0.00013698,2]
[403919529,1769677841283,-500.0,0.00013698,2]
[403919530,1769677841293,-500.0,0.00013698,2]
[403919531,1769677841302,-500.0,0.00013698,2]
[403919532,1769677841312,-500.0,0.00013698,2]
[403919533,1769677841321,-500.0,0.00013698,2]
[403919534,1769677841331,-500.0,0.00013698,2]
[403919535,1769677841340,-500.0,0.00013698,2]
[403919536,1769677841349,-500.0,0.00013698,2]
[403919537,1769677841359,-500.0,0.00013698,2]
[403919538,1769677841368,-500.0,0.00013698,2]
[403919539,1769677841377,-500.0,0.00013698,2]
[403919540,1769677841387,-500.0,0.00013698,2]
[403919541,1769677841396,-500.0,0.00013698,2]
[403919542,1769677841405,-533.70108919,0.00013698,2]
[403919543,1769677841414,-500.0,0.00013698,2]
[403919544,1769677841424,-500.0,0.00013698,2]
[403919545,1769677841433,-500.0,0.00013698,2]
[403919546,1769677841443,-500.0,0.00013698,2]
[403919547,1769677841452,-500.0,0.00013698,2]
[403919548,1769677841461,-500.0,0.00013698,2]
[403919549,1769677841471,-518.94139039,0.00013698,2]
[403919550,1769677841480,-500.0,0.00013698,2]
[403919551,1769677841490,-500.0,0.00013698,2]
[403919552,1769677841500,-500.0,0.00013698,2]
[403919553,1769677841509,-501.08252393,0.00013698,2]
[403919554,1769677841519,-1325.61,0.00013698,2]
[403919555,1769677841528,-1325.61,0.00013698,2]
[403919556,1769677841538,-1325.61,0.00013698,2]
[403919557,1769677841549,-1325.61,0.00013698,2]
[403919558,1769677841558,-1325.61,0.00013698,2]
[403919559,1769677841568,-1325.61,0.00013698,2]
[403919560,1769677841577,-1325.61,0.00013698,2]
[403919561,1769677841586,-530.03606409,0.00013698,2]
[403919562,1769677841595,-1875.13,0.00013698,2]
[403919563,1769677841605,-1875.13,0.00013698,2]
[403919564,1769677841615,-1875.13,0.00013698,2]
[403919565,1769677841624,-1875.13,0.00013698,2]
[403919566,1769677841634,-1875.13,0.00013698,2]
[403919567,1769677841643,-1875.13,0.00013698,2]
[403919568,1769677841653,-1875.13,0.00013698,2]
[403919569,1769677841662,-1875.13,0.00013698,2]
[403919570,1769677841672,-1875.13,0.00013698,2]
[403919571,1769677841682,-1875.13,0.00013698,2]
[403919572,1769677841691,-1875.13,0.00013698,2]
[403919573,1769677841700,-1875.13,0.00013698,2]
[403919574,1769677841709,-1875.13,0.00013698,2]
[403919575,1769677841718,-1875.13,0.00013698,2]
[403919576,1769677841727,-1875.13,0.00013698,2]
[403919577,1769677841737,-1875.13,0.00013698,2]
[403919578,1769677841746,-1875.13,0.00013698,2]
[403919579,1769677841756,-1875.13,0.00013698,2]
[403919580,1769677841765,-1875.13,0.00013698,2]
[403919581,1769677841774,-1875.13,0.00013698,2]
[403919582,1769677841783,-1875.13,0.00013698,2]
[403919583,1769677841792,-1875.13,0.00013698,2]
[403919584,1769677841801,-1875.13,0.00013698,2]
[403919585,1769677841810,-1875.15816564,0.00013698,2]
[403919586,1769677841819,-1000.0,0.00013699,2]
[403919587,1769677841829,-454.63175359,0.00013699,2]
[403919588,1769677841840,-501.60095283,0.00013699,2]
[403919589,1769677841849,-500.84679195,0.00013699,2]
[403919590,1769677841860,-500.0,0.00013699,2]
[403919591,1769677841871,-500.0,0.00013699,2]
[403919592,1769677841883,-500.0,0.00013699,2]
[403919593,1769677841893,-507.77467851,0.00013699,2]
[403919594,1769677841902,-500.0,0.00013699,2]
[403919595,1769677841912,-500.0,0.00013699,2]
[403919596,1769677841921,-500.0,0.00013699,2]
[403919597,1769677841931,-500.0,0.00013699,2]
[403919598,1769677841940,-314.792435,0.00013699,2]
[403919599,1769677841949,-500.0,0.00013699,2]
[403919600,1769677841958,-291.60725507,0.00013699,2]
[403919601,1769677841968,-501.76365168,0.00013699,2]
[403919602,1769677841978,-500.75803963,0.00013699,2]
[403919603,1769677841988,-500.0,0.00013699,2]
[403919604,1769677841998,-500.0,0.00013699,2]
[403919605,1769677842008,-500.0,0.00013699,2]
[403919606,1769677842017,-500.0,0.00013699,2]
[403919607,1769677842026,-500.0,0.00013699,2]
[403919608,1769677842035,-500.0,0.00013699,2]
[403919609,1769677842044,-500.0,0.00013699,2]
[403919610,1769677842054,-502.71899874,0.00013699,2]
[403919611,1769677842063,-500.0,0.00013699,2]
[403919612,1769677842072,-500.0,0.00013699,2]
[403919613,1769677842081,-500.0,0.00013699,2]
[403919614,1769677842091,-500.0,0.00013699,2]
[403919615,1769677842099,-162.25519116,0.00013699,2]
[403919616,1769677842108,-3347.45842294,0.00013708,2]
[403919617,1769677842118,-420.0,0.00013723,2]
[403919618,1769677842127,-168.6,0.00013723,2]
[403919619,1769677842136,-168.6,0.00013723,2]
[403919620,1769677842145,-168.6,0.00013723,2]
[403919621,1769677842155,-168.6,0.00013723,2]
[403919622,1769677842163,-168.6,0.00013723,2]
[403919623,1769677842173,-168.6,0.00013723,2]
[403919624,1769677842184,-168.57,0.00013723,2]
[403919625,1769677842194,-500.0,0.00013796,2]
[403919626,1769677842204,-1000.0,0.00013821,2]
[403919627,1769677842214,-1000.0,0.00013821,2]
[403919628,1769677842225,-355.419529,0.00013821,2]
[403919629,1769677842234,-897.62397769,0.00013821,2]
[403919630,1769677842243,-175.05414771,0.00013821,2]
[403919631,1769677842253,-1000.0,0.00013821,2]
[403919632,1769677842262,-501.40141245,0.00013821,2]
[403919633,1769677842272,-506.38016949,0.00013821,2]
[403919634,1769677842282,-1000.0,0.00013821,2]
[403919635,1769677842292,-1000.0,0.00013821,2]
[403919636,1769677842301,-1017.09664357,0.00013821,2]
[403919637,1769677842311,-1000.0,0.00013821,2]
[403919638,1769677842322,-1000.0,0.00013821,2]
[403919639,1769677842331,-196.99444629,0.00013821,2]
[403919640,1769677842340,-1000.0,0.00013821,2]
[403919641,1769677842349,-1007.51247725,0.00013821,2]
[403919642,1769677842358,-1000.0,0.00013821,2]
[403919643,1769677842367,-1000.0,0.00013821,2]
[403919644,1769677842376,-1000.0,0.00013821,2]
[403919645,1769677842385,-1000.0,0.00013821,2]
[403919646,1769677842394,-1107.3138929,0.00013821,2]
[403919647,1769677842403,-1000.0,0.00013821,2]
[403919648,1769677842412,-1002.6154559,0.00013821,2]
[403919649,1769677842422,-500.0,0.00013835,2]
[403919650,1769677842431,-420.0,0.0001393,2]
[403919651,1769677842440,-814.0,0.00013968,2]
[403919652,1769677842449,-1000.0,0.00013973,2]
[403919653,1769677842458,-3890.563676,0.0001404,2]
[403919654,1769677842467,-6405.8444251,0.00014045,2]
[403919655,1769677842477,-452.1700777,0.00014045,2]
[403919656,1769677842486,-225.7484677,0.00014053,2]
[403919657,1769677842495,-500.0,0.0001407,2]
[403919658,1769677842505,-600.0,0.00014221,2]
[403919659,1769677842514,-500.0,0.00014246,2]
[403919660,1769677842525,-583.95253597,0.00014246,2]
[403919661,1769677842534,-544.76043412,0.00014246,2]
[403919662,1769677842544,-1325.61,0.00014246,2]
[403919663,1769677842554,-592.85387235,0.00014247,2]
[403919664,1769677842563,-1000.0,0.00014247,2]
[403919665,1769677842572,-1000.0,0.00014247,2]
[403919666,1769677842582,-160.9968606,0.00014247,2]
[403919667,1769677842592,-1000.0,0.00014247,2]
[403919668,1769677842601,-1000.0,0.00014247,2]
[403919669,1769677842614,-504.15902707,0.00014247,2]
[403919670,1769677842623,-500.0,0.00014247,2]
[403919671,1769677842633,-1000.0,0.00014247,2]
[403919672,1769677842642,-1000.0,0.00014247,2]
[403919673,1769677842652,-1000.0,0.00014247,2]
[403919674,1769677842661,-1102.21614882,0.00014247,2]
[403919675,1769677842671,-1134.23032778,0.00014247,2]
[403919676,1769677842680,-1000.0,0.00014247,2]
[403919677,1769677842690,-1000.0,0.00014247,2]
[403919678,1769677842699,-720.0,0.00014248,2]
[403919679,1769677842708,-3347.45842294,0.00014262,2]
[403919680,1769677842717,-500.0,0.00014344,2]
[403919681,1769677842727,-500.0,0.00014368,2]
[403919682,1769677842737,-969.61936393,0.00014368,2]
[403919683,1769677842748,-1174.31678051,0.00014368,2]
[403919684,1769677842757,-1500.0,0.00014368,2]
[403919685,1769677842767,-268.34650551,0.00014368,2]
[403919686,1769677842776,-1500.0,0.00014368,2]
[403919687,1769677842786,-1500.0,0.00014368,2]
[403919688,1769677842798,-1500.0,0.00014368,2]
[403919689,1769677842807,-1500.0,0.00014368,2]
[403919690,1769677842816,-1500.0,0.00014368,2]
[403919691,1769677842828,-1500.0,0.00014368,2]
[403919692,1769677842840,-1000.0,0.00014368,2]
[403919693,1769677842849,-1059.00085584,0.00014368,2]
[403919694,1769677842858,-1500.0,0.00014368,2]
[403919695,1769677842867,-167.59538682,0.00014384,2]
[403919696,1769677842878,-3890.563676,0.00014585,2]
[403919697,1769677842888,-282.5207822,0.000146,2]
[403919698,1769677842898,-900.0,0.00014768,2]
[403919699,1769677842907,-1325.61,0.00014794,2]
[403919700,1769677842916,-822.54748319,0.00014795,2]
[403919701,1769677842926,-565.0903288,0.00014795,2]
[403919702,1769677842935,-336.07837269,0.00014795,2]
[403919703,1769677842946,-1500.0,0.00014795,2]
[403919704,1769677842956,-501.10012348,0.00014795,2]
[403919705,1769677842967,-1500.0,0.00014795,2]
[403919706,1769677842978,-1500.0,0.00014795,2]
[403919707,1769677842987,-3347.45842294,0.00014816,2]
[403919708,1769677842996,-150.75390644,0.00014835,2]
[403919709,1769677843008,-151.04060416,0.00014835,2]
[403919710,1769677843018,-500.0,0.00014835,2]
[403919711,1769677843027,-500.0,0.00014835,2]
[403919712,1769677843036,-150.4025982,0.00014835,2]
[403919713,1769677843046,-2001.01080598,0.00014916,2]
[403919714,1769677843055,-1000.0,0.00014916,2]
[403919715,1769677843064,-1500.0,0.00014916,2]
[403919716,1769677843073,-504.66008898,0.00014916,2]
[403919717,1769677843083,-1000.0,0.00014916,2]
[403919718,1769677843092,-2000.0,0.00014916,2]
[403919719,1769677843101,-1000.0,0.00014916,2]